[Event "5th Baskent University Open 2022"]
[Site "Ankara"]
[Date "2022.07.05"]
[Round "6.10"]
[White "Citak, Selim"]
[Black "Yildirim, Ibrahim Halil"]
[Result "1/2-1/2"]
[ECO "D11"]
[WhiteElo "2176"]
[BlackElo "2106"]
[Annotator "TA"]
[PlyCount "116"]
[EventDate "2022.07.02"]
[EventType "swiss"]
[EventCountry "TUR"]
[SourceTitle "playchess.com"]
[Source "ChessBase"]
[SourceQuality "1"]
[TimeControl "5400+30"]

{[%evp 9,116,13,6,10,10,0,17,0,0,-3,-5,-13,-12,-14,-25,-27,-28,-17,-27,-25,-25,-19,-22,-30,-30,-37,-45,-102,-104,-110,-46,-45,-35,-35,-8,-7,0,-2,-5,-5,-3,0,0,0,0,-7,0,0,-5,-9,-8,-11,-13,-117,-97,-110,-104,-97,-117,-96,-68,-66,-46,-89,-93,-91,-91,-83,-39,-41,-45,-49,-49,-2390,-1526,-866,-51,-51,-51,-51,-51,-51,-51,-29967,-29968,-29968,-29969,-29969,-29970,-29969,-29971,-29975,-29976,-29976,-29976,-29976,0,-29975,-29976,-29975,-29977,-29976,-8,-8,-8,-8,0,0,0]} 1. d4 {[%emt 0:01:00]} d5 {[%emt 0:01:00]} 2. c4 {[%emt 0:00:30]} c6 {[%emt 0:00:00]} 3. Nf3 {[%emt 0:00:30]} Nf6 {[%emt 0:00:00]} 4. Qc2 {[%emt 0:00:00]} g6 {[%emt 0:00:30]} 5. Bf4 {[%emt 0:00:00]} dxc4 {[%emt 0:02:30]} 6. Qxc4 {[%emt 0:08:30] D11: Slav Defence: 3 Nf3 sidelines and 3...Nf6 4 e3 Bg4.} Be6 {[%emt 0:03:30]} 7. Qc1 {[%emt 0:03:30]} Bd5 {[%emt 0:04:30]} 8. Nbd2 {[%emt 0:01:30]} Nbd7 {[%emt 0:03:30]} 9. Qc2 {[%emt 0:15:30]} Qa5 {[%emt 0:16:30]} 10. a3 {[%emt 0:03:30]} c5 {[%emt 0:05:30] Inhibits b4.} 11. dxc5 {[%emt 0:01:30]} Qxc5 {[%emt 0:00:30]} 12. Qxc5 {[%emt 0:19:30]} Nxc5 {[%emt 0:00:30] [#]} 13. Rc1 $146 {[%emt 0:00:30]} ({Predecessor:} 13. e3 Bg7 14. Bb5+ Nfd7 15. O-O-O a6 16. Bxd7+ Nxd7 17. e4 Ba2 18. Nb1 Rc8+ 19. Nc3 Bxc3 20. bxc3 {0-1 (33) Martinovici,I (2367)-Volkov,S (2572) Sochi 2019}) 13... Ncd7 {[%emt 0:08:30]} 14. e3 {[%emt 0:03:30]} Bg7 {[%emt 0:02:30]} 15. Bc4 {[%emt 0:01:30]} O-O {[%emt 0:01:30]} 16. O-O {[%emt 0:05:30]} Rac8 {[%emt 0:05:30]} 17. Ne5 {[%emt 0:00:30] Hoping for Nxd7.} Nb6 {[%emt 0:05:30]} 18. Bxd5 {[%emt 0:06:30]} ({White should try} 18. Be2 $15) 18... Nfxd5 $17 {[%emt 0:00:00]} 19. Ne4 {[%emt 0:01:30]} f6 {[%emt 0:05:00]} (19... Na4 $1 $17 20. Rcd1 Rfd8) 20. Nd3 $1 $15 {[%emt 0:01:30]} e5 {[%emt 0:08:30] ...Rxc1 is the strong threat.} 21. Bg3 {[%emt 0:01:30]} f5 {[%emt 0:05:47]} 22. Rxc8 {[%emt 0:00:30]} Nxc8 {[%emt 0:00:54]} 23. Nec5 {[%emt 0:00:00]} e4 {[%emt 0:05:04]} 24. Nb4 {[%emt 0:01:00]} Nxb4 {[%emt 0:01:52]} 25. axb4 {[%emt 0:00:30]} Bxb2 {[%emt 0:00:57]} 26. Nxb7 {[%emt 0:00:30]} Rf7 {[%emt 0:01:55]} 27. Rb1 {[%emt 0:10:39]} Rxb7 {[%emt 0:01:42]} 28. Rxb2 $11 {[%emt 0:00:02][%mdl 4096] Endgame KRB-KRN} Kf7 {[%emt 0:00:28]} 29. h4 {[%emt 0:00:48]} Ke6 {[%emt 0:00:34]} 30. Rc2 {[%emt 0:01:49]} Ne7 {[%emt 0:00:25]} 31. Rb2 {[%emt 0:05:26]} (31. Bf4 $11 {keeps the balance.}) 31... Nd5 {[%emt 0:00:29]} 32. Rc2 {[%emt 0:01:10]} Nxb4 {[%emt 0:01:45]} 33. Rc5 {[%emt 0:00:14]} a6 {[%emt 0:01:43]} 34. f3 {[%emt 0:00:58]} exf3 {[%emt 0:01:04]} 35. gxf3 {[%emt 0:00:06]} Ra7 {[%emt 0:00:10]} 36. e4 {[%emt 0:02:55]} fxe4 {[%emt 0:00:30]} 37. fxe4 {[%emt 0:00:30]} a5 $1 {[%emt 0:00:30]} 38. Be1 {[%emt 0:00:00]} Nd3 {[%emt 0:03:58]} 39. Rxa5 {[%emt 0:00:46]} Rxa5 {[%emt 0:00:34]} 40. Bxa5 $15 {[%emt 0:00:30] KB-KN} Ke5 {[%emt 0:00:22]} 41. h5 $2 {[%emt 0:02:24][%mdl 8192]} (41. Bd2 $15) 41... g5 $1 $19 {[%emt 0:00:56]} ({Stronger than} 41... gxh5 42. Kg2 $17) 42. Bd8 {[%emt 0:00:30]} g4 $2 {[%emt 0:00:00]} (42... Nf4 $1 $19 43. Kh2 Ne6) 43. Kg2 $15 {[%emt 0:01:26]} Kxe4 {[%emt 0:00:05] White must now prevent ...Kf4.} 44. Kg3 {[%emt 0:00:24]} Kf5 $1 {[%emt 0:00:05] And now ...Nf4 would win.} 45. h6 {[%emt 0:00:24]} Nc5 {[%emt 0:03:45] Threatens to win with ...Ne4+.} 46. Kh4 $2 {[%emt 0:00:43][%mdl 8192]} (46. Bc7 $15) 46... Kf4 {[%emt 0:00:42]} 47. Bc7+ {[%emt 0:00:55]} Kf3 {[%emt 0:00:13]} 48. Bb8 {[%emt 0:00:48]} Ne4 {[%emt 0:00:49]} 49. Bc7 {[%emt 0:00:29]} g3 {[%emt 0:01:01]} 50. Bxg3 {[%emt 0:00:38]} Nxg3 {[%emt 0:00:30] KN-KP} 51. Kg5 {[%emt 0:00:00]} Ne4+ {[%emt 0:00:55]} 52. Kf5 {[%emt 0:00:00]} Ng3+ $2 {[%emt 0:00:39]} (52... Nf2 53. Kf6 Nh3 54. Kf7 Ng5+ 55. Kg7 Ke4 56. Kg8 Kf5 57. Kf8 Kf6 58. Ke8 Ke6 59. Kd8 Nf7+ 60. Kc7 Nxh6 61. Kc6 Nf5 62. Kc5 h5 63. Kc6 h4 64. Kc7 h3 65. Kc6 h2 66. Kc5 h1=Q 67. Kc4 Qb1 68. Kc3 Ke5 69. Kc4 Nd4 70. Kc3 Qc2+ 71. Kb4 Qb3+ 72. Kc5 Qb5#) 53. Kf6 $2 {[%emt 0:00:48][%mdl 8192]} (53. Kg5 $11 Ne4+ 54. Kf5 Ke3 55. Ke5 Ng5 56. Kf5 Nh3 57. Kg4 Ng1 58. Kh5 Nf3 59. Kg4 Ng1 60. Kh5 Kf3 61. Kg5 Ke4 62. Kh5 Kf5 63. Kh4 Kf4 64. Kh5 Ne2 65. Kh4 Ng3 66. Kh3 Nf5 67. Kh2 Nxh6 68. Kh3 Nf5 69. Kh2 h5 70. Kh3 Kf3 71. Kh2 Kg4 72. Kg1 Ne3 73. Kh2 Kh4 74. Kh1 Kh3 75. Kg1 Kg3 76. Kh1 h4 77. Kg1 h3 78. Kh1 Nf1 79. Kg1 Nd2 80. Kh1 Ne4 81. Kg1 h2+ 82. Kf1 Kf3 83. Ke1 h1=Q#) 53... Nh5+ $1 {[%emt 0:00:22]} 54. Kg5 {[%emt 0:00:32] [#]} Nf4 $1 {[%emt 0:00:32]} 55. Kf6 {[%emt 0:00:24] [#]} Kg4 $2 {[%emt 0:00:41]} (55... Nh3 $1 {mates} 56. Kf5 Kg3 57. Ke6 Kf4 58. Kf6 Ng5 59. Ke7 Kf5 60. Kd6 Nf7+ 61. Kd5 Nxh6 62. Kd4 Ng4 63. Kd3 h5 64. Ke2 Kf4 65. Kf1 Kg3 66. Ke2 h4 67. Kd3 h3 68. Kd4 h2 69. Kc5 h1=Q 70. Kb6 Ne5 71. Kc5 Qc1+ 72. Kb5 Qc6+ 73. Ka5 Qc5+ 74. Ka6 Qb4 75. Ka7 Nd7 76. Ka8 Qb8#) 56. Kg7 $11 {[%emt 0:00:16] The position is equal.} Kg5 {[%emt 0:00:30]} 57. Kxh7 {[%emt 0:00:09]} Kf6 {[%emt 0:00:02]} 58. Kg8 $1 {[%emt 0:00:22]} Ng6 {[%emt 0:00:28] Weighted Error Value: White=0.48/Black=0.34} 1/2-1/2

[Event "5th Baskent University Open 2022"]
[Site "Ankara"]
[Date "2022.07.05"]
[Round "6.11"]
[White "Maruflu, Enes Yusuf"]
[Black "Unat, Can Haktan"]
[Result "1/2-1/2"]
[ECO "E01"]
[WhiteElo "2046"]
[BlackElo "2242"]
[Annotator "TA"]
[PlyCount "146"]
[EventDate "2022.07.02"]
[EventType "swiss"]
[EventCountry "TUR"]
[SourceTitle "playchess.com"]
[Source "ChessBase"]
[SourceQuality "1"]
[TimeControl "5400+30"]

{[%evp 9,146,6,17,0,0,0,0,0,24,42,65,61,59,53,65,47,53,54,62,53,66,64,69,31,55,31,34,37,37,37,29,14,17,13,47,57,83,83,108,111,107,50,126,84,98,109,101,24,23,0,0,0,15,-14,-24,-48,-38,-41,-41,-45,-8,-10,-8,-8,-8,-6,42,0,0,0,0,0,0,-5,-5,-5,-5,-5,-5,-5,0,0,0,0,0,-8,-8,-8,-8,-8,-8,-8,-8,-8,-8,-8,-8,-8,-8,-8,-8,-8,-5,-5,0,0,0,-5,-5,-8,0,0,0,-6,0,0,0,0,0,0,0,0,6,0,6,13,20,20,20,20,20,20,33,20,20,20,20,20,20]} 1. c4 {[%emt 0:02:00]} Nf6 {[%emt 0:02:00]} 2. d4 {[%emt 0:00:00]} e6 {[%emt 0:05:30]} 3. g3 {[%emt 0:00:00]} d5 {[%emt 0:00:30]} 4. Bg2 {[%emt 0:01:30]} Bb4+ {[%emt 0:06:30]} 5. Bd2 {[%emt 0:00:30]} a5 {[%emt 0:00:30]} 6. a3 {[%emt 0:02:30] E01: Catalan: Early deviations.} Be7 {[%emt 0:02:30]} 7. Nf3 {[%emt 0:01:30]} O-O {[%emt 0:02:30]} 8. Qc2 {[%emt 0:00:30]} c5 {[%emt 0:06:30]} 9. cxd5 {[%emt 0:06:30] [#]} Qxd5 $146 {[%emt 0:02:30]} ({Predecessor:} 9... cxd4 10. Nxd4 Nxd5 11. Nc3 Bf6 12. Nxd5 exd5 13. Bc3 Nc6 14. Rd1 Re8 15. O-O Bg4 16. Nxc6 bxc6 17. Bxf6 Qxf6 {½-½ (23) Hort,V (2446)-Miezis,N (2542) Triesen 2011}) 10. Nc3 {[%emt 0:01:30]} Qh5 {[%emt 0:00:30]} 11. dxc5 {[%emt 0:02:30]} Bxc5 {[%emt 0:02:30]} 12. O-O {[%emt 0:01:30][%cal Bh1f1,Bf1d1,Bd1d6][%mdl 32]} Nc6 {[%emt 0:00:30]} 13. Ne4 {[%emt 0:06:30]} Nxe4 {[%emt 0:07:30]} 14. Qxe4 {[%emt 0:00:30]} e5 {[%emt 0:00:00]} 15. Bc3 {[%emt 0:01:30]} Re8 {[%emt 0:04:00]} 16. Rfd1 {[%emt 0:04:30]} (16. b4 $5 {[%cal Rb4c5]} Bf8 17. b5 $16) 16... Bb6 {[%emt 0:09:30]} 17. Rd6 {[%emt 0:01:30]} Bf5 {[%emt 0:01:30]} 18. Qh4 {[%emt 0:02:30]} Qxh4 {[%emt 0:09:30]} 19. Nxh4 {[%emt 0:00:30]} Bg4 {[%emt 0:00:30]} 20. Rxc6 {[%emt 0:19:30]} bxc6 {[%emt 0:00:30]} 21. Bxc6 {[%emt 0:00:00]} e4 {[%emt 0:04:30]} 22. Kf1 {[%emt 0:03:00]} h5 {[%emt 0:08:30]} 23. Ng2 {[%emt 0:02:30]} Rad8 {[%emt 0:02:30]} 24. Bxe8 {[%emt 0:00:30]} Rxe8 {[%emt 0:00:30]} 25. Rd1 {[%emt 0:00:00]} (25. Nf4 $16) 25... e3 {[%emt 0:00:00]} ({Black should try} 25... Rd8 $14 26. Rxd8+ Bxd8) 26. f3 {[%emt 0:08:00]} Bxf3 {[%emt 0:01:00]} 27. Rd6 {[%emt 0:00:30]} Bc5 {[%emt 0:00:30]} 28. Rd7 {[%emt 0:00:30]} (28. Ra6 $16 Be4 29. Rxa5) 28... Bc6 $11 {[%emt 0:02:50]} 29. Rd3 {[%emt 0:07:30]} (29. Rc7 $5 {[%cal Rc7c6]} Re6 30. Bxa5 $14) 29... Be4 {[%emt 0:02:42]} 30. Rd7 {[%emt 0:00:30]} a4 {[%emt 0:04:14]} (30... Bc6 $5 {[%cal Rc6d7]} 31. Rc7 Re6 $14) 31. h4 {[%emt 0:04:30]} Rc8 {[%emt 0:01:33]} 32. Ba5 {[%emt 0:06:30]} Bf5 {[%emt 0:04:22] A strong pair of Bishops.} 33. Rd5 {[%emt 0:05:26]} Be6 {[%emt 0:02:20]} 34. Rd3 {[%emt 0:02:07]} Bc4 {[%emt 0:01:53]} 35. Rd1 {[%emt 0:02:14]} f6 {[%emt 0:00:44]} 36. Nf4 {[%emt 0:00:30] Prevents Be6.} g5 {[%emt 0:00:02]} 37. Nxh5 {[%emt 0:03:08]} gxh4 {[%emt 0:00:53]} (37... Kf7 $1 $11 {is superior.}) 38. Rd7 {[%emt 0:01:15]} Be6 {[%emt 0:01:04]} 39. Nxf6+ {[%emt 0:00:56]} Kf8 {[%emt 0:00:03]} 40. Rh7 {[%emt 0:01:58]} hxg3 {[%emt 0:02:06]} 41. Kg2 {[%emt 0:01:00]} Be7 {[%emt 0:00:16]} 42. Rh8+ {[%emt 0:00:43]} Kf7 {[%emt 0:00:30]} 43. Rxc8 {[%emt 0:00:30]} Bxc8 {[%emt 0:00:30][%mdl 4096] Endgame KBB-KBN} 44. Nh5 {[%emt 0:00:00]} Bd6 {[%emt 0:00:46]} 45. Nxg3 {[%emt 0:00:00]} Bb7+ {[%emt 0:00:00]} 46. Kh3 {[%emt 0:00:00]} Ke6 {[%emt 0:00:10]} 47. Bb6 {[%emt 0:00:40]} Be5 {[%emt 0:00:17]} 48. Bxe3 {[%emt 0:00:13]} Bxb2 {[%emt 0:00:30]} 49. Bc5 {[%emt 0:00:30]} Kd5 {[%emt 0:00:00]} 50. Bb4 {[%emt 0:00:24]} Kc4 {[%emt 0:00:00]} 51. Nf1 $1 {[%emt 0:00:25]} Kb3 {[%emt 0:00:40]} 52. Nd2+ {[%emt 0:00:02]} Ka2 {[%emt 0:00:00]} 53. Nc4 {[%emt 0:00:55]} Bc1 {[%emt 0:00:32]} 54. Nb6 $1 {[%emt 0:00:30]} Kb3 {[%emt 0:00:01]} 55. Kg3 $1 {[%emt 0:01:15]} Be3 {[%emt 0:00:43]} 56. Nd7 {[%emt 0:00:23]} Kc4 {[%emt 0:00:00]} 57. Ne5+ {[%emt 0:00:28]} Kb3 {[%emt 0:00:40]} 58. Nd3 {[%emt 0:00:26]} Kc2 {[%emt 0:00:25]} 59. Bc5 {[%emt 0:01:00]} Bh6 {[%emt 0:00:41]} 60. Kf2 $1 {[%emt 0:01:07]} Be4 {[%emt 0:00:20]} 61. Ne1+ {[%emt 0:00:21]} Kd2 {[%emt 0:00:44]} 62. Bb4+ {[%emt 0:00:34]} Kd1 {[%emt 0:01:29]} 63. Nd3 {[%emt 0:00:00]} Kc2 {[%emt 0:00:00]} 64. Nc5 {[%emt 0:00:00][%csl LRa4,LRe4]} Bc6 {[%emt 0:00:00]} 65. e4 {[%emt 0:00:00]} Bf4 {[%emt 0:00:00]} 66. Kf3 {[%emt 0:00:00]} Bd6 {[%emt 0:00:36]} 67. Ke3 {[%emt 0:00:00] aiming for Kd4.} Bxc5+ {[%emt 0:01:38]} 68. Bxc5 {[%emt 0:00:00] [#] Strongly threatening Kd4. KB-KB} Kc3 $1 {[%emt 0:00:00]} 69. Kf4 {[%emt 0:00:02]} Kc4 {[%emt 0:00:05]} 70. Bf8 {[%emt 0:00:00]} Kb5 {[%emt 0:00:50]} 71. e5 {[%emt 0:00:00]} Bd7 {[%emt 0:00:12] The position is equal.} 72. Kg5 {[%emt 0:00:01]} Kc6 {[%emt 0:00:31]} 73. Kf6 {[%emt 0:00:30] [#] And now e6 would win.} Kd5 {[%emt 0:00:00] Against e6.  Weighted Error Value: White=0.09 (flawless) /Black=0.07 (flawless)} 1/2-1/2

[Event "5th Baskent University Open 2022"]
[Site "Ankara"]
[Date "2022.07.05"]
[Round "6.12"]
[White "Bekiragaoglu, Umut"]
[Black "Zor, Alber Kadir"]
[Result "1/2-1/2"]
[ECO "B33"]
[WhiteElo "2067"]
[BlackElo "2116"]
[Annotator "TA"]
[PlyCount "37"]
[EventDate "2022.07.02"]
[EventType "swiss"]
[EventCountry "TUR"]
[SourceTitle "playchess.com"]
[Source "ChessBase"]
[SourceQuality "1"]
[TimeControl "5400+30"]

{[%evp 9,37,16,63,57,59,60,48,40,49,56,54,51,50,0,0,0,0,-17,27,22,41,1,21,0,17,4,18,0,0,0]} 1. e4 {[%emt 0:01:00]} c5 {[%emt 0:01:00]} 2. Nf3 {[%emt 0:00:30][%cal Bg1f3,Bf3d4,Bd4b3][%mdl 32]} Nc6 {[%emt 0:00:30]} 3. d4 {[%emt 0:00:30]} cxd4 {[%emt 0:00:00]} 4. Nxd4 {[%emt 0:00:00]} Nf6 {[%emt 0:00:00]} 5. Nc3 {[%emt 0:00:00]} h5 {[%emt 0:00:00]} (5... e6 $11) 6. Bg5 $14 {[%emt 0:06:30] White is more active. B33: Sicilian: Pelikan and Sveshnikov Variations.} Qa5 {[%emt 0:00:00][%csl LRe4,LRg5]} 7. Bxf6 {[%emt 0:01:30]} gxf6 {[%emt 0:00:00]} 8. Nb3 {[%emt 0:05:30] White is slightly better.} Qe5 {[%emt 0:00:00]} 9. g3 {[%emt 0:08:30]} e6 {[%emt 0:00:00]} 10. f4 {[%emt 0:02:30]} Qd6 {[%emt 0:00:00]} 11. Qxd6 {[%emt 0:03:30]} (11. Qe2 $14) 11... Bxd6 $11 {[%emt 0:00:30]} 12. O-O-O {[%emt 0:00:30]} Ke7 {[%emt 0:03:30] [#]} 13. Bg2 $146 {[%emt 0:00:30]} ({Predecessor:} 13. Nb5 Bb8 14. h4 a6 15. N5d4 Nxd4 16. Nxd4 b5 17. Kb1 Bb7 18. Bd3 Ba7 19. Ne2 {1-0 (41) Arakhamia Grant,K (2354)-Vine,E (2084) Chess.com INT 2022}) 13... Bb8 {[%emt 0:20:30]} 14. Rhe1 {[%emt 0:02:30]} d6 {[%emt 0:03:30]} 15. Rd3 {[%emt 0:06:30]} a6 {[%emt 0:14:30] The position is equal.} 16. Red1 {[%emt 0:03:30]} Bc7 {[%emt 0:08:30]} 17. Nd2 {[%emt 0:15:30]} Nb4 {[%emt 0:01:30]} 18. Rd4 {[%emt 0:00:30]} Nc6 {[%emt 0:00:30]} 19. Rd3 {[%emt 0:00:00] Weighted Error Value: White=0.11 (very precise) /Black=0.13 (very precise)} 1/2-1/2

[Event "5th Baskent University Open 2022"]
[Site "Ankara"]
[Date "2022.07.05"]
[Round "6.13"]
[White "Ozturk, Efe Hakan"]
[Black "Bicer, Atakan Mert"]
[Result "1/2-1/2"]
[ECO "D78"]
[WhiteElo "2115"]
[BlackElo "2368"]
[Annotator "TA"]
[PlyCount "83"]
[EventDate "2022.07.02"]
[EventType "swiss"]
[EventCountry "TUR"]
[SourceTitle "playchess.com"]
[Source "ChessBase"]
[SourceQuality "1"]
[TimeControl "5400+30"]

{[%evp 16,83,27,22,17,20,15,27,22,4,14,16,18,9,26,14,16,28,33,32,87,98,91,87,75,49,70,30,97,96,100,60,93,39,56,5,9,-6,23,17,30,30,30,28,35,36,36,13,42,20,52,52,54,20,52,9,20,9,9,9,87,9,52,0,9,24,31,31,31,0]} 1. d4 {[%emt 0:01:00]} d5 {[%emt 0:01:00]} 2. c4 {[%emt 0:00:30]} c6 {[%emt 0:00:30]} 3. Nf3 {[%emt 0:01:30]} Nf6 {[%emt 0:00:00]} 4. g3 {[%emt 0:01:30]} g6 {[%emt 0:01:00]} 5. Bg2 {[%emt 0:00:30]} Bg7 {[%emt 0:00:00]} 6. O-O {[%emt 0:00:30]} O-O {[%emt 0:00:00]} 7. Qb3 {[%emt 0:04:30]} dxc4 {[%emt 0:17:30]} 8. Qxc4 {[%emt 0:00:30]} Be6 {[%emt 0:01:30] 8...b5 is setting a new trend.} 9. Qa4 {[%emt 0:05:30]} Nbd7 {[%emt 0:07:30] D78: Fianchetto Grünfeld: 6 0-0 c6.} 10. Nc3 {[%emt 0:02:30]} Nb6 {[%emt 0:04:30] 10...Bf5 is vanishing.} 11. Qc2 {[%emt 0:02:30]} Nfd5 {[%emt 0:03:30] White has an edge.} 12. a3 {[%emt 0:25:30]} Rc8 {[%emt 0:14:30] [#]} 13. e4 $146 {[%emt 0:06:30]} ({Predecessor:} 13. Rd1 Nxc3 14. bxc3 h6 15. a4 Nc4 16. Rb1 b6 17. Nd2 Qd7 18. e4 Nxd2 19. Rxd2 {½-½ (81) Bronowicki,M (2313)-Strzemiecki,Z (2285) Gorzow Wielkopolski 2007}) 13... Nxc3 {[%emt 0:00:00]} 14. bxc3 {[%emt 0:00:00]} c5 {[%emt 0:02:00][%cal Rc5d4]} 15. d5 {[%emt 0:02:00]} Bg4 {[%emt 0:00:30]} 16. Rb1 {[%emt 0:11:30]} Qd7 {[%emt 0:09:30]} 17. c4 {[%emt 0:02:30]} Bxf3 {[%emt 0:01:30]} (17... e6 $1 $14) 18. Bxf3 $16 {[%emt 0:00:30]} Bd4 {[%emt 0:01:30]} 19. Bh6 {[%emt 0:06:30]} Rfe8 {[%emt 0:05:30]} 20. Bd2 {[%emt 0:01:30] This bishop pair is nice.} e5 {[%emt 0:04:30]} 21. Ba5 {[%emt 0:01:30]} Na8 {[%emt 0:00:30]} (21... Ra8 $1 $11) 22. Bd1 {[%emt 0:03:20]} Re7 {[%emt 0:11:39]} 23. Qa4 {[%emt 0:09:54] Black must now prevent Qxd7.} Qd6 {[%emt 0:02:38]} 24. Kg2 {[%emt 0:02:35]} (24. Bd2 $16) 24... f5 $1 $14 {[%emt 0:00:47]} ({Don't take} 24... Nb6 25. Bxb6 axb6 26. Qa7 $16) 25. f3 {[%emt 0:00:17]} (25. Bd2 $14) 25... f4 $11 {[%emt 0:01:37]} ({But not} 25... Nb6 26. Bxb6 axb6 27. Qa7 $14) 26. g4 {[%emt 0:03:38]} h6 {[%emt 0:00:58]} 27. h4 {[%emt 0:01:24][%cal Bh2h4,Bh4h5][%mdl 32]} Kg7 {[%emt 0:01:01]} 28. Be1 {[%emt 0:02:02]} b6 {[%emt 0:02:40]} 29. Rh1 {[%emt 0:01:25]} Nc7 {[%emt 0:00:54][%cal Ba8c7,Bc7e8,Be8d6][%mdl 32]} 30. h5 {[%emt 0:00:30]} g5 {[%emt 0:00:00]} 31. Qb3 {[%emt 0:01:00]} Ne8 {[%emt 0:00:40]} 32. a4 {[%emt 0:00:41]} Qc7 {[%emt 0:02:52]} 33. Be2 {[%emt 0:00:53]} Nd6 {[%emt 0:00:11]} 34. Bd2 {[%emt 0:00:09][%cal Oa4a5]} Qd8 {[%emt 0:00:39]} 35. Qa2 {[%emt 0:00:34]} (35. a5 $5) 35... Rb8 {[%emt 0:01:09]} 36. Rb3 {[%emt 0:00:33]} Reb7 {[%emt 0:00:38]} 37. Rhb1 {[%emt 0:00:30]} Qd7 {[%emt 0:01:47]} (37... a5 $11) 38. Bc3 {[%emt 0:00:17]} (38. a5 $16) 38... Kf6 {[%emt 0:00:30]} 39. Bd2 {[%emt 0:00:36]} (39. a5 $14) 39... a6 {[%emt 0:00:33]} 40. Kh3 {[%emt 0:00:28]} Qc7 {[%emt 0:00:56]} 41. Qc2 {[%emt 0:00:37]} Qd7 {[%emt 0:00:27]} 42. Qa2 {[%emt 0:00:11] Weighted Error Value: White=0.19 (very precise) /Black=0.13 (very precise)} 1/2-1/2